fUSD/lending_fUSD_20251119
["ID","MTS","AMOUNT","RATE_DAILY","PERIOD"]
[394440269,1763573764849,419.1272177,0.00042199,120]
[394440270,1763573768539,241.3877215,0.00042199,120]
[394440271,1763573771196,266.17376096,0.00042199,120]
[394440272,1763573772290,500.0,0.00042199,120]
[394440273,1763573772538,584.61539975,0.00042199,120]
[394440274,1763573775209,201.88998289,0.00042199,120]
[394440275,1763573778275,423.08411228,0.00042199,120]
[394440276,1763573782129,176.53589058,0.00042199,120]
[394440277,1763573785467,571.85429061,0.00042199,120]
[394440278,1763573785928,347.21678322,0.00042199,120]
[394440279,1763573787452,494.88476316,0.00042199,120]
[394440280,1763573787748,385.53055763,0.00042199,120]
[394440281,1763573787995,156.49082569,0.00042199,120]
[394440282,1763573789437,432.93699857,0.00042199,120]
[394440283,1763573793507,166.0975365,0.00042199,120]
[394440284,1763573794286,248.81413464,0.00042199,120]
[394440285,1763573797234,374.67703899,0.00042199,120]
[394440286,1763573797992,213.5829023,0.00042199,120]
[394440287,1763573798430,396.11564563,0.00042199,120]
[394440288,1763573798463,380.98121232,0.00042199,120]
[394440289,1763573801247,289.89545045,0.00042199,120]
[394440290,1763573801798,308.63681503,0.00042199,120]
[394440291,1763573805024,199.15672211,0.00042199,120]
[394440292,1763573808033,210.79013691,0.00042199,120]
[394440293,1763573812427,339.20169463,0.00042199,120]
[394440294,1763573812590,486.46,0.00042199,120]
[394440295,1763573813440,405.70412506,0.00042199,120]
[394440296,1763573814425,262.07137844,0.00042199,120]
[394440297,1763573814603,513.19206972,0.00042199,120]
[394440298,1763573815826,255.57017712,0.00042199,120]
[394440299,1763573817744,312.57784801,0.00042199,120]
[394440300,1763573818383,340.22,0.00042199,120]
[394440301,1763573819663,302.89896559,0.00042199,120]
[394440302,1763573823933,229.93450772,0.00042199,120]
[394440303,1763573825932,259.1944386,0.00042199,120]
[394440304,1763573827019,377.28587627,0.00042199,120]
[394440305,1763573827997,372.6144465,0.00042199,120]
[394440306,1763573830089,396.14790294,0.00042199,120]
[394440307,1763573832028,500.0,0.00042199,120]
[394440308,1763573832061,494.79593903,0.00042199,120]
[394440309,1763573832271,196.62777728,0.00042199,120]
[394440310,1763573834141,322.48834902,0.00042199,120]
[394440311,1763573834508,359.94639127,0.00042199,120]
[394440312,1763573836188,268.00676917,0.00042199,120]
[394440313,1763573840960,442.58318574,0.00042199,120]
[394440314,1763573841366,527.62695673,0.00042199,120]
[394440315,1763573843603,458.18073368,0.00042199,120]
[394440316,1763573845651,581.62055582,0.00042199,120]
[394440317,1763573848034,503.56537804,0.00042199,120]
[394440318,1763573850581,183.02580067,0.00042199,120]
[394440319,1763573851344,461.81239967,0.00042199,120]
[394440320,1763573851905,426.91088106,0.00042199,120]
[394440321,1763573853220,363.80959205,0.00042199,120]
[394440322,1763573853706,277.95499147,0.00042199,120]
[394440323,1763573855105,329.30908828,0.00042199,120]
[394440324,1763573859371,272.96907496,0.00042199,120]
[394440325,1763573859641,161.45504347,0.00042199,120]
[394440326,1763573859727,261.35013512,0.00042199,120]
[394440327,1763573861327,250.94311812,0.00042199,120]
[394440328,1763573866649,410.89602655,0.00042199,120]
[394440329,1763573867611,407.68925983,0.00042199,120]
[394440330,1763573868429,163.63857743,0.00042199,120]
[394440331,1763573869808,366.28052807,0.00042199,120]
[394440332,1763573870280,380.03003583,0.00042199,120]
[394440333,1763573874148,299.3933307,0.00042199,120]
[394440334,1763573875743,376.30932745,0.00042199,120]
[394440335,1763573877276,412.04815387,0.00042199,120]
[394440336,1763573877660,217.3962881,0.00042199,120]
[394440337,1763573882616,376.43342974,0.00042199,120]
[394440338,1763573884048,439.49066653,0.00042199,120]
[394440339,1763573885240,190.67246048,0.00042199,120]
[394440340,1763573886517,404.37776988,0.00042199,120]
[394440341,1763573887122,621.92451704,0.00042199,120]
[394440342,1763573889177,480.43501879,0.00042199,120]
[394440343,1763573889669,198.94469568,0.00042199,120]
[394440344,1763573889813,213.32206193,0.00042199,120]
[394440345,1763573891100,276.16658716,0.00042199,120]
[394440346,1763573891906,357.62463142,0.00042199,120]
[394440347,1763573893989,378.35539462,0.00042199,120]
[394440348,1763573894939,446.30053674,0.00042199,120]
[394440349,1763573895782,505.27051631,0.00042199,120]
[394440350,1763573895866,250.1130318,0.00042199,120]
[394440351,1763573896910,202.51266177,0.00042199,120]
[394440352,1763573899980,471.3077733,0.00042199,120]
[394440353,1763573901585,519.22378214,0.00042199,120]
[394440354,1763573903580,222.24185084,0.00042199,120]
[394440355,1763573904335,227.48261975,0.00042199,120]
[394440356,1763573905981,354.44439352,0.00042199,120]
[394440357,1763573906460,208.106536,0.00042199,120]
[394440358,1763573907105,200.0,0.00042199,120]
[394440359,1763573909119,288.62635866,0.00042199,120]
[394440360,1763573910029,434.93263558,0.00042199,120]
[394440361,1763573912252,162.28,0.00042199,120]
[394440362,1763573914281,227.46731501,0.00042199,120]
[394440363,1763573916266,644.56171872,0.00042199,120]
[394440364,1763573919369,208.74979576,0.00042199,120]
[394440365,1763573919951,259.46786446,0.00042199,120]
[394440366,1763573919982,412.45585543,0.00042199,120]
[394440367,1763573920075,391.71520617,0.00042199,120]
[394440368,1763573921276,451.87287268,0.00042199,120]
[394440369,1763573922555,259.41660249,0.00042199,120]
[394440370,1763573924408,169.54376697,0.00042199,120]
[394440371,1763573924442,485.54594731,0.00042199,120]
[394440372,1763573924748,383.71103479,0.00042199,120]
[394440373,1763573926511,209.48691528,0.00042199,120]
[394440374,1763573928493,432.8257933,0.00042199,120]
[394440375,1763573930063,500.0,0.00042199,120]
[394440376,1763573930302,413.62747251,0.00042199,120]
[394440377,1763573932581,224.98629666,0.00042199,120]
[394440378,1763573934126,274.177498,0.00042199,120]
[394440379,1763573934881,377.0647715,0.00042199,120]
[394440380,1763573937464,405.23698361,0.00042199,120]
[394440381,1763573943255,210.53678917,0.00042199,120]
[394440382,1763573947185,421.27662974,0.00042199,120]
[394440383,1763573949148,294.15351639,0.00042199,120]
[394440384,1763573951929,251.47629084,0.00042199,120]
[394440385,1763573955665,164.79502629,0.00042198,120]
[394440386,1763573958964,282.98854248,0.00042198,120]
[394440387,1763573959308,513.60510235,0.00042198,120]
[394440388,1763573959439,207.03040174,0.00042198,120]
[394440389,1763573960125,448.08123211,0.00042198,120]
[394440390,1763573960820,481.20972589,0.00042198,120]
[394440391,1763573962014,153.83591107,0.00042198,120]
[394440392,1763573962973,172.14940112,0.00042198,120]
[394440393,1763573963749,518.93411629,0.00042198,120]
[394440394,1763573964984,299.8011481,0.00042198,120]
[394440395,1763573966342,163.81,0.00018423,2]
[394440396,1763573966480,163.81,0.00022108,2]
[394440397,1763573966733,163.81,0.00025793,2]
[394440398,1763573967385,260.0,0.00042198,120]
[394440399,1763573968056,293.5281642,0.00042198,120]
[394440400,1763573968602,518.02214867,0.00042198,120]
[394440401,1763573971313,356.34638603,0.00042198,120]
[394440402,1763573971399,318.59338492,0.00042198,120]
[394440403,1763573973699,397.40107779,0.00042198,120]
[394440404,1763573975182,397.56417338,0.00042198,120]
[394440405,1763573975639,410.73348447,0.00042198,120]
[394440406,1763573976709,254.87103045,0.00042198,120]
[394440407,1763573977167,267.73659474,0.00042198,120]
[394440408,1763573978244,311.92588504,0.00042198,120]
[394440409,1763573979232,317.7249243,0.00042198,120]
[394440410,1763573983158,289.16860369,0.00042198,120]
[394440411,1763573983653,335.28824423,0.00042198,120]
[394440412,1763573984132,331.07969076,0.00042198,120]
[394440413,1763573985081,335.63050999,0.00042198,120]
[394440414,1763573985485,409.69136461,0.00042198,120]
[394440415,1763573985517,201.42133179,0.00042198,120]
[394440416,1763573985886,202.46128999,0.00042198,120]
[394440417,1763573985988,636.53,0.00042198,120]
[394440418,1763573988930,324.28380863,0.00042198,120]
[394440419,1763573989930,346.67241492,0.00042198,120]
[394440420,1763573990416,435.44480729,0.00042198,120]
[394440421,1763573990797,209.97308471,0.00042198,120]
[394440422,1763573993352,324.94519853,0.00042198,120]
[394440423,1763573994010,567.34548597,0.00042198,120]
[394440424,1763573995093,291.58599831,0.00042198,120]
[394440425,1763574000975,262.45816268,0.00042198,120]
[394440426,1763574001165,311.88910911,0.00042198,120]
[394440427,1763574002314,400.0,0.00042198,120]
[394440428,1763574002472,358.77539198,0.00042198,120]
[394440429,1763574004470,279.78001246,0.00042198,120]
[394440430,1763574004751,302.91476656,0.00042198,120]
[394440431,1763574006398,282.73426935,0.00042198,120]
[394440432,1763574012819,328.5354772,0.00042198,120]
[394440433,1763574013685,286.16191442,0.00042198,120]
[394440434,1763574016373,334.69662523,0.00042198,120]
[394440436,1763574018778,284.37130129,0.00042198,120]
[394440440,1763574022868,268.19466508,0.00042198,120]
[394440441,1763574023370,156.51,0.00013699,2]
[394440442,1763574023581,156.51,0.00020951,2]
[394440445,1763574028008,467.68376567,0.00042198,120]
[394440446,1763574030989,516.72885359,0.00042198,120]
[394440447,1763574032592,490.71997839,0.00042198,120]
[394440448,1763574033420,419.81173678,0.00042198,120]
[394440449,1763574034517,384.60607149,0.00042198,120]
[394440451,1763574034704,444.79457874,0.00042198,120]
[394440452,1763574037038,316.65546561,0.00042198,120]
[394440453,1763574037074,409.5303424,0.00042198,120]
[394440454,1763574038467,400.88374291,0.00042198,120]
[394440455,1763574038917,293.63614845,0.00042198,120]
[394440456,1763574039520,321.57686369,0.00042198,120]
[394440457,1763574041419,296.03841899,0.00042198,120]
[394440458,1763574042310,482.21444064,0.00042198,120]
[394440459,1763574042519,413.34666351,0.00042198,120]
[394440460,1763574043292,301.83005415,0.00042198,120]
[394440461,1763574043455,402.73799,0.00042198,120]
[394440462,1763574045261,194.90986352,0.00042198,120]
[394440463,1763574046493,459.47262655,0.00042198,120]
[394440464,1763574046834,440.45333285,0.00042198,120]
[394440465,1763574046869,392.18499591,0.00042198,120]
[394440466,1763574047256,438.48954871,0.00042198,120]
[394440467,1763574049636,469.21235467,0.00042198,120]
[394440468,1763574050429,413.84063495,0.00042198,120]
[394440469,1763574052306,525.9081152,0.00042198,120]
[394440470,1763574052476,323.60210236,0.00042198,120]
[394440471,1763574052562,346.00839347,0.00042198,120]
[394440472,1763574054349,241.52036389,0.00042198,120]
[394440473,1763574054799,500.0,0.00042198,120]
[394440474,1763574055276,507.0159977,0.00042198,120]
[394440476,1763574056478,276.71850999,0.00042198,120]
[394440477,1763574056612,408.68640159,0.00042198,120]
[394440478,1763574057317,500.0,0.00042198,30]
[394440479,1763574057555,502.71593777,0.00042198,30]
[394440480,1763574058500,426.07382459,0.00042198,120]
[394440481,1763574058532,400.0,0.00042198,120]
[394440482,1763574058587,538.55407318,0.00042198,120]
[394440483,1763574061964,163.24282281,0.00042198,60]
[394440484,1763574064181,266.21536424,0.00042198,120]
[394440485,1763574064242,350.79735311,0.00042198,120]
[394440486,1763574064276,482.56598993,0.00042198,120]
[394440487,1763574066139,407.81574529,0.00042198,120]
[394440488,1763574069808,277.15515754,0.00042198,120]
[394440489,1763574071881,474.14136945,0.00042198,120]
[394440490,1763574072469,380.12576263,0.00042198,120]
[394440491,1763574073000,395.47898483,0.00042198,120]
[394440492,1763574073116,168.80668741,0.00042198,120]
[394440493,1763574076712,411.5441119,0.00042198,120]
[394440494,1763574078595,215.94707779,0.00042198,120]
[394440495,1763574080398,400.0,0.00042198,120]
[394440496,1763574082204,191.66700536,0.00042198,120]
[394440497,1763574084120,400.0,0.00042198,120]
[394440498,1763574090406,441.64117636,0.00042198,120]
[394440499,1763574093833,190.82109305,0.00042198,120]
[394440500,1763574096013,400.0,0.00042198,120]
[394440501,1763574100884,478.94430228,0.00042198,120]
[394440502,1763574101330,281.89768476,0.00042198,120]
[394440503,1763574101729,266.41143148,0.00042198,120]
[394440504,1763574104863,230.29908517,0.00042198,120]
[394440505,1763574105194,343.75280117,0.00042198,120]
[394440506,1763574106593,321.38262739,0.00042198,120]
[394440507,1763574108855,475.62143123,0.00042198,120]
[394440509,1763574112278,360.91772148,0.00042198,120]
[394440510,1763574117499,378.61610043,0.00042198,120]
[394440511,1763574117626,292.63437407,0.00042198,120]
[394440512,1763574118092,486.69029359,0.00042198,120]
[394440513,1763574119277,427.44872191,0.00042198,120]
[394440514,1763574119453,453.66731775,0.00042198,120]
[394440516,1763574121846,205.51184011,0.00042198,120]
[394440520,1763574123287,327.54937956,0.00042198,120]
[394440524,1763574124814,425.45329605,0.00042198,120]
[394440525,1763574126455,501.26033826,0.00042198,120]
[394440526,1763574129905,331.63033117,0.00042198,120]
[394440527,1763574131901,500.0,0.00042198,120]
[394440528,1763574132036,350.02792058,0.00042198,120]
[394440529,1763574133253,235.46514844,0.00042198,120]
[394440530,1763574140086,261.97676712,0.00042198,120]
[394440531,1763574141827,500.0,0.00042198,120]
[394440532,1763574142213,500.0,0.00042198,120]
[394440533,1763574142350,242.62970054,0.00042198,120]
[394440534,1763574147649,500.0,0.00042198,30]
[394440535,1763574147885,500.0,0.00042198,30]
[394440536,1763574151077,437.81992745,0.00042198,120]
[394440537,1763574153075,456.77078385,0.00042198,120]
[394440538,1763574153326,368.11560048,0.00042198,120]
[394440539,1763574155075,208.31920864,0.00042198,120]
[394440540,1763574158287,406.7470313,0.00042198,120]
[394440541,1763574160208,406.1870881,0.00042198,120]
[394440542,1763574163501,455.52576562,0.00042198,120]
[394440543,1763574165928,417.1878572,0.00042198,120]
[394440544,1763574169205,-156.51,0.00028203,2]
[394440545,1763574169229,-163.81,0.00029477,2]
[394440546,1763574170603,405.40558864,0.00042198,120]
[394440547,1763574171623,396.77085613,0.00042198,120]
[394440548,1763574174322,404.82064955,0.00042198,120]
[394440549,1763574174691,720.62,0.00042198,120]
[394440550,1763574174857,500.0,0.00042198,120]
[394440551,1763574174948,720.62,0.00042198,120]
[394440552,1763574175112,500.0,0.00042198,120]
[394440553,1763574175193,720.62,0.00042198,120]
[394440554,1763574175256,315.35301734,0.00042198,120]
[394440555,1763574175430,720.62,0.00042198,120]
[394440556,1763574175710,720.62,0.00042198,120]
[394440557,1763574175960,720.62,0.00042198,120]
[394440558,1763574176210,720.62,0.00042198,120]
[394440559,1763574176446,720.62,0.00042198,120]
[394440560,1763574176689,720.62,0.00042198,120]
[394440561,1763574176846,500.0,0.00042198,120]
[394440562,1763574176960,720.62,0.00042198,120]
[394440563,1763574177103,500.39031222,0.00042198,120]
[394440564,1763574177196,720.62,0.00042198,120]
[394440565,1763574177445,720.62,0.00042198,120]
[394440566,1763574177682,720.62,0.00042198,120]
[394440567,1763574177921,720.62,0.00042198,120]
[394440568,1763574178181,720.62,0.00042198,120]
[394440569,1763574178462,720.62,0.00042198,120]
[394440570,1763574178803,720.62,0.00042198,120]
[394440571,1763574179064,720.62,0.00042198,120]
[394440572,1763574179108,400.0,0.00042198,120]
[394440573,1763574179338,720.62,0.00042198,120]
[394440574,1763574179601,720.62,0.00042198,120]
[394440575,1763574179854,720.62,0.00042198,120]
[394440576,1763574180122,720.62,0.00042198,120]
[394440577,1763574180377,720.62,0.00042198,120]
[394440578,1763574180620,720.62683861,0.00042198,120]
[394440579,1763574180922,454.36988297,0.00042198,120]
[394440580,1763574182440,240.10778419,0.00042198,120]
[394440581,1763574182758,337.58647613,0.00042198,120]
[394440582,1763574184458,366.51108588,0.00042198,120]
[394440583,1763574184792,415.51668564,0.00042198,120]
[394440584,1763574186555,6888.0,0.00042198,120]
[394440585,1763574186614,406.36769155,0.00042198,120]
[394440586,1763574187181,7142.856,0.00042198,120]
[394440587,1763574187791,7407.141672,0.00042198,120]
[394440588,1763574188417,7681.20591386,0.00042198,120]
[394440589,1763574189088,7965.41053268,0.00042198,120]
[394440590,1763574189704,8260.13072239,0.00042198,120]
[394440591,1763574189783,425.55466557,0.00042198,120]
[394440592,1763574190337,8565.75555911,0.00042198,120]
[394440593,1763574190371,405.56794967,0.00042198,120]
[394440594,1763574190936,8882.6885148,0.00042198,120]
[394440595,1763574191563,9211.34798985,0.00042198,120]
[394440596,1763574192184,9211.34798985,0.00042198,120]
[394440597,1763574193410,374.45783556,0.00042198,120]
[394440598,1763574195288,210.95466768,0.00042198,120]
[394440599,1763574197148,359.49257816,0.00042198,120]
[394440600,1763574198639,405.59030956,0.00042198,120]
[394440601,1763574199163,260.0,0.0003,2]
[394440602,1763574199194,500.0,0.00042198,120]
[394440603,1763574199426,157.78890897,0.00042198,120]
[394440604,1763574200263,411.02446105,0.00042198,120]
[394440605,1763574204974,409.57548454,0.00042198,120]
[394440606,1763574205871,196.72159094,0.00042198,120]
[394440607,1763574206348,367.18552831,0.00042198,120]
[394440608,1763574206845,404.72877666,0.00042198,120]
[394440609,1763574208341,341.12899724,0.00042198,120]
[394440610,1763574209032,463.37349168,0.00042198,120]
[394440611,1763574210410,404.68790593,0.00042198,120]
[394440612,1763574210972,342.93725956,0.00042198,120]
[394440613,1763574213403,498.18541625,0.00042198,120]
[394440614,1763574217685,378.70734121,0.00042198,120]
[394440615,1763574220532,336.33130179,0.00042198,120]
[394440616,1763574221717,432.39891929,0.00042198,120]
[394440617,1763574222367,410.88644995,0.00042198,120]
[394440618,1763574224276,328.22626712,0.00042198,120]
[394440619,1763574228095,195.54259725,0.00042198,120]
[394440620,1763574228126,403.39277962,0.00042198,120]
[394440621,1763574228818,439.44331087,0.00042198,120]
[394440622,1763574231859,437.22145985,0.00042198,120]
[394440623,1763574234001,221.74151695,0.00042198,120]
[394440624,1763574236251,218.30898148,0.00042198,120]
[394440625,1763574242773,498.0,0.00042198,120]
[394440626,1763574244611,421.03849573,0.00042198,120]
[394440627,1763574247657,195.0,0.00032093,120]
[394440628,1763574247830,340.81987562,0.00042198,120]
[394440629,1763574249990,162.33937246,0.00042198,120]
[394440630,1763574251825,330.83925647,0.00042198,120]
[394440631,1763574252959,416.34337567,0.00042198,120]
[394440632,1763574272363,153.85124506,0.00042198,120]
[394440633,1763574296093,371.22084665,0.00042198,120]
[394440639,1763574314065,189.13506799,0.00042198,120]
[394440640,1763574328017,414.20207946,0.00042198,120]
[394440641,1763574330754,191.23090988,0.00042198,120]
[394440642,1763574333816,236.1600481,0.00042198,120]
[394440643,1763574334340,328.1042038,0.00042198,120]
[394440644,1763574334492,506.59438377,0.00042198,120]
[394440645,1763574336588,484.86310471,0.00042198,120]
[394440646,1763574338332,468.16247343,0.00042198,120]
[394440647,1763574338588,390.15263178,0.00042198,120]
[394440648,1763574342328,473.73800295,0.00042198,120]
[394440649,1763574345844,390.84648335,0.00042198,120]
[394440650,1763574347310,302.24605686,0.00042198,120]
[394440651,1763574353229,395.50994823,0.00042198,120]
[394440652,1763574358209,328.833005,0.00042198,120]
[394440653,1763574359626,-250.0,0.00031023,2]
[394440654,1763574359984,304.77632682,0.00042198,120]
[394440655,1763574368075,383.69134661,0.00042198,120]
[394440656,1763574384413,195.97290883,0.00042198,120]
[394440657,1763574386199,329.90056253,0.00042198,120]
[394440658,1763574389619,197.00795688,0.00042198,120]
[394440659,1763574391748,304.98757223,0.00042198,120]
[394440674,1763574426416,500.0,0.00042198,120]
[394440675,1763574426657,500.0,0.00042198,120]
[394440676,1763574426918,500.0,0.00042198,120]
[394440677,1763574427158,500.0,0.00042198,120]
[394440678,1763574427785,500.0,0.00042198,120]
[394440679,1763574428076,500.0,0.00042198,120]
[394440681,1763574428322,500.0,0.00042198,120]
[394440682,1763574428588,500.0,0.00042198,120]
[394440683,1763574428816,497.87007755,0.00042198,120]
[394440687,1763574527639,400.0,0.00042198,120]
[394440688,1763574569272,494.90637512,0.00042198,120]
[394440689,1763574572580,500.0,0.00042198,120]
[394440690,1763574572878,501.98830624,0.00042198,120]
[394440692,1763574584286,410.42764024,0.00042198,120]
[394440693,1763574622301,253.35307931,0.00042198,120]
[394440694,1763574624110,344.72809689,0.00042198,120]
[394440695,1763574626057,2736.25219672,0.0003,2]
[394440696,1763574626311,600.0,0.00042198,120]
[394440718,1763574632121,-163.81,0.00033162,2]
[394440719,1763574632131,-205.41652084,0.00033594,120]
[394440720,1763574632140,-300.0,0.00034126,120]
[394440721,1763574632152,-150.75211863,0.00034126,30]
[394440722,1763574632161,-195.0,0.00034126,120]
[394440723,1763574632172,-166.66,0.0003456,30]
[394440724,1763574632182,-166.66,0.00035287,30]
[394440725,1763574632192,-156.51,0.00035455,2]
[394440726,1763574632201,-189.69426884,0.00035911,2]
[394440727,1763574632212,-230.47,0.00035943,2]
[394440728,1763574632222,-1000.0,0.00035981,2]
[394440729,1763574632233,-300.0,0.00036011,3]
[394440730,1763574632242,-300.0,0.00036011,3]
[394440731,1763574632252,-1200.0,0.00036011,3]
[394440732,1763574632262,-17195.131254,0.00036012,2]
[394440733,1763574632274,-2920.548746,0.00036012,2]
[394440734,1763574632284,-166.66,0.00036015,30]
[394440735,1763574632293,-153.02,0.00036369,2]
[394440736,1763574632303,-250.0,0.00036478,2]
[394440737,1763574632313,-300.0,0.00036478,119]
[394440738,1763574632322,-300.0,0.00036478,119]
[394440739,1763574632331,-300.0,0.00036478,119]
[394440740,1763574632340,-300.0,0.00036478,119]
[394440741,1763574632350,-300.0,0.00036478,119]
[394440742,1763574632359,-2500.0,0.00036478,120]
[394440743,1763574632368,-250.0,0.00036478,2]
[394440744,1763574632377,-150.0,0.00036507,2]
[394440745,1763574632386,-5000.0,0.0003656,2]
[394440746,1763574632395,-1944.46,0.0003656,2]
[394440747,1763574632407,-1481.62,0.00036566,2]
[394440748,1763574632418,-166.66,0.00036742,30]
[394440749,1763574632427,-189.69426883,0.00036797,2]
[394440750,1763574632437,-1209.0,0.00036846,2]
[394440751,1763574632446,-163.81,0.00036847,2]
[394440752,1763574632456,-9999.99,0.00036847,2]
[394440753,1763574632465,-930.85,0.00036847,2]
[394440754,1763574632475,-150.0,0.00036888,7]
[394440755,1763574632485,-150.0,0.00036888,7]
[394440756,1763574632494,-150.0,0.00036888,7]
[394440757,1763574632503,-150.0,0.00036888,7]
[394440758,1763574632514,-150.0,0.00036888,7]
[394440759,1763574632523,-150.0,0.00036888,7]
[394440760,1763574632533,-150.0,0.00036888,7]
[394440761,1763574632542,-151.48800402,0.00036888,7]
[394440762,1763574632551,-150.0,0.00036888,7]
[394440763,1763574632561,-150.0,0.00036888,7]
[394440764,1763574632570,-150.0,0.00036888,7]
[394440765,1763574632580,-150.0,0.00036888,7]
[394440766,1763574632591,-150.0,0.00036888,7]
[394440767,1763574632601,-4224.0,0.00036897,2]
[394440768,1763574632610,-2783.33,0.00036897,2]
[394440769,1763574632620,-6493.72,0.00036897,2]
[394440770,1763574632634,-1000.0,0.00036953,2]
[394440771,1763574632643,-7001.71393854,0.00037,2]
[394440772,1763574632655,-1852.42,0.00037027,2]
[394440773,1763574632665,-340.37,0.0003707,2]
[394440774,1763574632675,-159.74,0.00037161,2]
[394440775,1763574632684,-518.77844467,0.00037198,30]
[394440776,1763574632694,-500.0,0.00037198,30]
[394440777,1763574632703,-500.0,0.00037198,30]
[394440778,1763574632713,-500.0,0.00037198,30]
[394440779,1763574632726,-500.0,0.00037198,30]
[394440780,1763574632736,-1155.06,0.00037233,2]
[394440781,1763574632746,-429.63,0.00037233,2]
[394440782,1763574632755,-166.66,0.0003747,30]
[394440783,1763574632765,-500.0,0.00037483,5]
[394440784,1763574632774,-150.0,0.00037571,7]
[394440785,1763574632784,-172.06266027,0.00037607,12]
[394440786,1763574632793,-169.723451,0.00037648,29]
[394440787,1763574632802,-642.84274844,0.00037698,15]
[394440788,1763574632812,-154.25837096,0.00037698,15]
[394440789,1763574632821,-500.0,0.00037698,15]
[394440790,1763574632830,-500.0,0.00037698,15]
[394440791,1763574632839,-500.0,0.00037698,15]
[394440792,1763574632848,-500.0,0.00037698,15]
[394440793,1763574632857,-500.0,0.00037698,15]
[394440794,1763574632866,-168.61747997,0.00037698,15]
[394440795,1763574632875,-431.53378443,0.00037698,15]
[394440796,1763574632885,-500.0,0.00037698,15]
[394440797,1763574632894,-302.29369619,0.00037698,15]
[394440798,1763574632905,-211130.50058234,0.00037699,2]
[394440799,1763574632922,-3382.00600148,0.00037699,2]
[394440800,1763574632933,-2208.47706905,0.00037699,2]
[394440801,1763574632945,-82286.02444904,0.00037699,2]
[394440813,1763574638099,-2864.79176854,0.00037699,2]
[394440814,1763574638111,-386.68049553,0.00037699,2]
[394440815,1763574638123,-2685.0,0.00037699,2]
[394440816,1763574638155,-12507.38658396,0.00037699,2]
[394440817,1763574638172,-102514.99999965,0.00037699,2]
[394440818,1763574638209,-85901.0081137,0.00037699,2]
[394440819,1763574638224,-6701.13008459,0.00037699,2]
[394440929,1763574640047,-252.636388,0.00037699,2]
[394440931,1763574640103,-4475.0,0.00037699,2]
[394440932,1763574640157,-883.33332448,0.00037699,2]
[394440933,1763574640171,-4067.85667775,0.00037699,2]
[394440934,1763574640212,-300.35996914,0.00037699,2]
[394440935,1763574640266,-509.51293,0.00037699,2]
[394440936,1763574640321,-1438.13285037,0.00037699,2]
[394440937,1763574640332,-2575.43858789,0.00037699,2]
[394440938,1763574640345,-11019.80863721,0.00037699,2]
[394440939,1763574640356,-2987.2,0.00037699,2]
[394440940,1763574640376,-288.69374861,0.00037699,2]
[394440942,1763574640388,-292.0,0.00037699,2]
[394440959,1763574644635,-121573.27599645,0.00037699,2]
[394440960,1763574644692,-618.809979,0.00037699,2]
[394440961,1763574644744,-4469.45,0.00037699,2]
[394440998,1763574646346,-162.0,0.00036506,120]
[394440999,1763574646355,-550.682,0.00037699,2]
[394441000,1763574646366,-985.01000029,0.00037699,2]
[394441001,1763574646377,-892.50947183,0.00037699,2]
[394441002,1763574646558,-1202.03602301,0.00037699,2]
[394441003,1763574646666,-2930.70000001,0.00037699,2]